bitfinex/quotes_BTCUSD_20250124
["timestamp","ask_amount","ask_price","bid_price","bid_amount"]
[1737745820924,9.295e-05,106000.0,105990.0,0.41142126]
[1737745821141,9.295e-05,106000.0,105990.0,0.42138126]
[1737745821275,9.295e-05,106000.0,105990.0,0.41142126]
[1737745821675,0.54489295,106000.0,105990.0,0.41142126]
[1737745821878,9.295e-05,106000.0,105990.0,0.38842126]
[1737745822133,0.08289295,106000.0,105990.0,0.38842126]
[1737745824024,0.08289295,106000.0,105990.0,0.38342126]
[1737745824361,0.23440195,106000.0,105990.0,0.32681226]
[1737745825149,0.23440195,106000.0,105990.0,0.38342126]
[1737745825354,0.23440195,106000.0,105990.0,0.23342126]
[1737745825736,0.08289295,106000.0,105990.0,0.23342126]
[1737745825904,9.295e-05,106000.0,105990.0,0.40642126]
[1737745826711,9.295e-05,106000.0,105990.0,0.32209829]
[1737745829200,0.54489295,106000.0,105990.0,0.32209829]
[1737745829419,9.295e-05,106000.0,105990.0,0.32209829]
[1737745829640,9.295e-05,106000.0,105990.0,0.17681226]
[1737745829641,0.23220195,106000.0,105990.0,0.17681226]
[1737745829866,0.28790195,106000.0,105990.0,0.17681226]
[1737745830249,0.26790195,106000.0,105990.0,0.08432297]
[1737745831021,0.42147943,106000.0,105990.0,0.08432297]
[1737745831479,0.418622,105990.0,105980.0,0.0011419]
[1737745831714,0.268636,105980.0,105970.0,0.0001418]
[1737745831920,0.59848981,105980.0,105970.0,0.0001418]
[1737745832132,0.44491233,105980.0,105970.0,0.0001418]
[1737745832407,0.59848981,105980.0,105970.0,0.0001418]
[1737745832849,0.59848981,105980.0,105930.0,6e-05]
[1737745832850,0.141589,105940.0,105930.0,6e-05]
[1737745833086,0.268689,105940.0,105930.0,0.09740729]
[1737745833504,0.42226648,105940.0,105930.0,6e-05]
[1737745834023,0.57226648,105940.0,105930.0,6e-05]
[1737745834198,0.141629,105910.0,105900.0,0.0163623]
[1737745834455,0.5536777,105910.0,105900.0,0.01685406]
[1737745834670,0.49070648,105910.0,105900.0,0.01685406]
[1737745835164,0.187129,105910.0,105900.0,0.11420135]
[1737745836700,0.207129,105910.0,105900.0,0.17085835]
[1737745836915,0.0555,105910.0,105900.0,0.17085835]
[1737745837120,0.0555,105910.0,105900.0,0.17180256]
[1737745837327,0.0755,105910.0,105900.0,0.17180256]
[1737745837568,0.01,105910.0,105900.0,0.17180256]
[1737745837778,0.5548,105910.0,105900.0,0.17085835]
[1737745837985,0.62769547,105910.0,105900.0,0.01685406]
[1737745838193,0.049,105860.0,105850.0,0.056683]
[1737745838398,0.01,105860.0,105850.0,0.15497487]
[1737745838819,0.01,105860.0,105850.0,0.23054887]
[1737745839044,0.01,105860.0,105850.0,0.22960429]
[1737745839254,0.01,105880.0,105870.0,0.056673]
[1737745839474,0.069,105890.0,105880.0,0.056667]
[1737745839684,0.05949236,105890.0,105880.0,0.15401429]
[1737745839893,0.01049236,105890.0,105880.0,0.15401429]
[1737745840088,0.15214836,105890.0,105880.0,0.09734729]
[1737745840322,0.16309259,105890.0,105880.0,0.09734729]
[1737745840527,0.14214836,105890.0,105880.0,0.09734729]
[1737745840739,0.16214836,105890.0,105880.0,0.09734729]
[1737745841420,0.14214836,105890.0,105880.0,0.09734729]
[1737745841655,0.16214836,105890.0,105880.0,0.09734729]
[1737745841887,0.14214836,105890.0,105880.0,0.09734729]
[1737745842294,0.16214836,105890.0,105880.0,0.15401429]
[1737745842533,0.14214836,105890.0,105880.0,0.15401429]
[1737745842751,0.16214836,105890.0,105880.0,0.15401429]
[1737745842959,0.01049236,105890.0,105880.0,0.15401429]
[1737745843160,0.00049236,105890.0,105880.0,0.15495865]
[1737745843392,0.01049236,105890.0,105880.0,0.15495865]
[1737745843805,0.00049236,105890.0,105880.0,0.15495865]
[1737745844194,0.15214836,105890.0,105880.0,0.09734729]
[1737745844553,0.14214836,105890.0,105880.0,0.09734729]
[1737745844762,0.16309259,105890.0,105880.0,0.09734729]
[1737745844970,0.16214836,105890.0,105880.0,0.09734729]
[1737745845942,0.16309259,105890.0,105880.0,0.09734729]
[1737745846348,0.16214836,105890.0,105880.0,0.09734729]
[1737745847446,0.14309259,105890.0,105880.0,0.09748919]
[1737745847654,0.16309259,105890.0,105880.0,0.09748919]
[1737745847857,0.480524,105900.0,105890.0,0.35690741]
[1737745848017,0.4805732,105900.0,105890.0,0.35690741]
[1737745849215,0.4795732,105900.0,105890.0,0.35690741]
[1737745851053,0.47934423,105900.0,105890.0,0.35690741]
[1737745851286,0.47934423,105900.0,105890.0,0.4542547]
[1737745852109,0.32934423,105900.0,105890.0,0.4542547]
[1737745853906,0.32934423,105900.0,105890.0,0.5109167]
[1737745854308,0.0200492,105900.0,105890.0,0.5109167]
[1737745854512,4.92e-05,105900.0,105890.0,0.5109167]
[1737745855489,4.92e-05,105900.0,105890.0,0.6839167]
[1737745858023,4.92e-05,105900.0,105890.0,0.6942767]
[1737745858639,0.0003472,105900.0,105890.0,0.6942767]
[1737745859262,0.0003472,105900.0,105890.0,0.70420046]
[1737745861538,0.03,105930.0,105900.0,0.023]
[1737745861539,0.5448,105930.0,105900.0,0.023]
[1737745861749,0.5448,105940.0,105930.0,0.056641]
[1737745861946,0.5448493,105940.0,105930.0,0.15493214]
[1737745862391,4.93e-05,105940.0,105930.0,0.15493214]
[1737745862630,0.5448,105960.0,105930.0,0.37473214]
[1737745862819,0.5448,105960.0,105950.0,0.26007729]
[1737745862820,0.54484928,105960.0,105950.0,0.26007729]
[1737745862993,0.54484928,105960.0,105950.0,0.24747729]
[1737745863606,4.928e-05,105960.0,105950.0,0.38707729]
[1737745863801,0.54484928,105960.0,105950.0,0.38707729]
[1737745864457,4.928e-05,105960.0,105950.0,0.41007729]
[1737745865025,4.928e-05,105960.0,105950.0,0.38707729]
[1737745865172,0.55484928,105960.0,105950.0,0.30397729]
[1737745865379,0.55484928,105960.0,105950.0,0.15397729]
[1737745865599,0.55484928,105960.0,105950.0,0.15492098]
[1737745865801,0.54484928,105960.0,105950.0,0.15492098]
[1737745866009,4.928e-05,105960.0,105950.0,0.32792098]
[1737745866212,4.928e-05,105960.0,105950.0,0.32697729]
[1737745868642,4.928e-05,105960.0,105950.0,0.33729729]
[1737745870228,4.928e-05,105960.0,105950.0,0.41749729]
[1737745871847,4.928e-05,105960.0,105950.0,0.15397729]
[1737745872033,0.00034728,105960.0,105950.0,0.17792088]
[1737745872186,0.00034728,105960.0,105950.0,0.41832088]
[1737745872394,0.00034728,105960.0,105950.0,0.41737729]
[1737745875830,0.00459739,105960.0,105950.0,0.41737729]
[1737745876024,0.00034728,105960.0,105950.0,0.41737729]
[1737745876202,0.00459739,105960.0,105950.0,0.41737729]
[1737745877023,0.00459739,105960.0,105950.0,0.15397729]
[1737745877273,0.00459739,105960.0,105950.0,0.30397729]
[1737745877474,0.00459739,105960.0,105950.0,0.15397729]
[1737745877735,0.54939739,105960.0,105950.0,0.30397729]
[1737745878158,0.00386615,105960.0,105950.0,0.30397729]
[1737745878364,0.5448,105970.0,105960.0,0.056625]
[1737745878569,0.54897681,105970.0,105960.0,0.1550633]
[1737745878768,0.54897681,105970.0,105960.0,0.15411972]
[1737745879015,0.01417681,105970.0,105960.0,0.15411972]
[1737745879217,0.55897681,105970.0,105960.0,0.1550633]
[1737745879472,0.54897681,105970.0,105960.0,0.15506335]
[1737745879796,0.00417681,105970.0,105960.0,0.15506335]
[1737745880270,0.54897681,105970.0,105960.0,0.17806335]
[1737745881859,0.54897681,105970.0,105960.0,0.40306335]
[1737745881860,0.00417681,105970.0,105960.0,0.40306335]
[1737745882058,0.00417681,105970.0,105960.0,0.41227972]
[1737745883002,0.555098,105990.0,105980.0,0.056614]
[1737745883174,0.555098,105990.0,105980.0,0.15396129]
[1737745883377,0.68662,105990.0,105980.0,0.15396129]
[1737745883603,0.16182,105990.0,105980.0,0.15396129]
[1737745884223,0.16182,105990.0,105980.0,0.09734729]
[1737745884463,0.14182,105990.0,105980.0,0.09734729]
[1737745884668,0.22292,105990.0,105980.0,0.09734729]
[1737745885174,0.23292,105990.0,105980.0,0.09734729]
[1737745885394,0.23292,105990.0,105980.0,0.15396129]
[1737745885602,0.010298,105990.0,105980.0,0.15490479]
[1737745886234,0.020298,105990.0,105980.0,0.15490479]
[1737745886753,0.010298,105990.0,105980.0,0.09734729]
[1737745886989,0.15182,105990.0,105980.0,0.15396129]
[1737745887190,0.17182,105990.0,105980.0,0.09734729]
[1737745888423,0.15182,105990.0,105980.0,0.09734729]
[1737745888623,0.17182,105990.0,105980.0,0.09734729]
[1737745890882,0.010298,105990.0,105980.0,0.32790484]
[1737745891087,0.010298,105990.0,105980.0,0.32696129]
[1737745894492,0.020298,105990.0,105980.0,0.32696129]
[1737745895291,0.020298,105990.0,105980.0,0.33701766]
[1737745895872,0.010298,105990.0,105980.0,0.33701766]
[1737745896295,0.010298,105990.0,105980.0,0.3658368]
[1737745896707,0.020298,105990.0,105980.0,0.3533968]
[1737745896911,0.565098,105990.0,105980.0,0.31401766]
[1737745897138,0.010298,105990.0,105980.0,0.15396129]
[1737745899989,0.010298,105990.0,105980.0,0.15490477]
[1737745900590,0.15182,105990.0,105980.0,0.15396129]
[1737745900936,0.010298,105990.0,105980.0,0.15396129]
[1737745901470,0.020298,105990.0,105980.0,0.15396129]
[1737745901875,0.16182,105990.0,105980.0,0.15396129]
[1737745902303,0.20862,105990.0,105980.0,0.15396129]
[1737745902498,0.067098,105990.0,105980.0,0.15396129]
[1737745902845,0.20862,105990.0,105980.0,0.15396129]
[1737745903421,0.20862,105990.0,105980.0,0.09734729]
[1737745903625,0.22862,105990.0,105980.0,0.09734729]
[1737745904831,0.28602,105990.0,105980.0,0.09734729]
[1737745906783,0.141549,105970.0,105960.0,0.00028923]
[1737745906993,0.161549,105970.0,105960.0,0.09763652]
[1737745907218,0.263649,105970.0,105960.0,0.09763652]
[1737745908709,0.188649,105970.0,105960.0,0.15426152]
[1737745908914,0.0471,105970.0,105960.0,0.15426152]
[1737745909123,0.518998,105980.0,105960.0,0.30525552]
[1737745909332,0.35027,105980.0,105970.0,0.15396629]
[1737745910295,0.35027,105980.0,105970.0,0.09734729]
[1737745912021,0.36027,105980.0,105970.0,0.09734729]
[1737745919298,0.36056779,105980.0,105970.0,0.09734729]
[1737745921657,0.161549,105970.0,105960.0,0.00028923]
[1737745921862,0.161549,105970.0,105960.0,0.09763652]
[1737745922922,0.141549,105970.0,105960.0,0.09763652]
[1737745923288,0.427149,105970.0,105960.0,0.00028923]
[1737745924543,0.43673417,105970.0,105960.0,0.00028923]
[1737745926659,0.42673417,105970.0,105960.0,0.09763652]
[1737745926873,0.34963417,105970.0,105960.0,0.09763652]
[1737745929948,0.34056979,105980.0,105960.0,0.22975752]
[1737745930161,0.36056979,105980.0,105970.0,0.15396629]
[1737745930370,0.03029779,105980.0,105970.0,0.15396629]
[1737745930581,0.02029779,105980.0,105970.0,0.2368099]
[1737745930801,0.02029779,105980.0,105970.0,0.23586629]
[1737745932363,0.02029779,105980.0,105970.0,0.40886629]
[1737745932783,0.02029779,105980.0,105970.0,0.41890249]
[1737745933098,0.56509779,105980.0,105970.0,0.24590249]
[1737745933255,0.55509779,105980.0,105970.0,0.24590249]
[1737745933464,0.69663379,105980.0,105970.0,0.10738349]
[1737745933681,0.69663379,105980.0,105970.0,0.15396629]
[1737745934762,0.55509779,105980.0,105970.0,0.15396629]
[1737745936553,0.69663379,105980.0,105970.0,0.09734729]
[1737745936940,0.17183379,105980.0,105970.0,0.09734729]
[1737745937145,0.15183379,105980.0,105970.0,0.09734729]
[1737745937547,0.15183379,105980.0,105970.0,0.15396629]
[1737745938148,0.15183379,105980.0,105970.0,0.09734729]
[1737745938615,0.15183379,105980.0,105970.0,0.15396629]
[1737745939076,0.15183379,105980.0,105970.0,0.09734729]
[1737745941405,0.15183379,105980.0,105970.0,0.15396629]
[1737745941629,0.17183379,105980.0,105970.0,0.15396629]
[1737745941802,0.15183379,105980.0,105970.0,0.15396629]
[1737745942007,0.01029779,105980.0,105970.0,0.15396629]
[1737745942209,0.01029779,105980.0,105970.0,0.22956629]
[1737745942410,0.15183379,105980.0,105970.0,0.22956629]
[1737745942843,0.01029779,105980.0,105970.0,0.22956629]
[1737745943379,0.15183379,105980.0,105970.0,0.22956629]
[1737745943633,0.15183379,105980.0,105970.0,0.09734729]
[1737745943830,0.15183379,105980.0,105970.0,0.15396629]
[1737745945528,0.01029779,105980.0,105970.0,0.15396629]
[1737745945956,0.02029779,105980.0,105970.0,0.15396629]
[1737745946179,0.01029779,105980.0,105970.0,0.15396629]
[1737745946596,0.559232,105990.0,105980.0,0.08970221]
[1737745946777,0.370528,105990.0,105980.0,0.1870495]
[1737745947343,0.370528,105990.0,105980.0,0.2436635]
[1737745947972,0.181831,105990.0,105980.0,0.2436635]
[1737745948179,0.020298,105990.0,105980.0,0.2436635]
[1737745948484,0.16182,105990.0,105980.0,0.2436635]
[1737745948675,0.040298,105990.0,105980.0,0.2436635]
[1737745948893,0.02457909,105990.0,105980.0,0.2436635]
[1737745949865,0.02457909,105990.0,105980.0,0.4712635]
[1737745950862,0.03457909,105990.0,105980.0,0.4712635]
[1737745951070,0.02457909,105990.0,105980.0,0.4712635]
[1737745951676,0.03457909,105990.0,105980.0,0.4712635]
[1737745952424,0.18610109,105990.0,105980.0,0.1870495]
[1737745952646,0.16610109,105990.0,105980.0,0.1870495]
[1737745952953,0.16610109,105990.0,105980.0,0.2436635]
[1737745953163,0.02457909,105990.0,105980.0,0.2436635]
[1737745953398,0.04457909,105990.0,105980.0,0.3188635]
[1737745953658,0.18610109,105990.0,105980.0,0.3188635]
[1737745953884,0.02457909,105990.0,105980.0,0.3188635]
[1737745954090,0.18610109,105990.0,105980.0,0.1870495]
[1737745954303,0.18610109,105990.0,105980.0,0.1871913]
[1737745954513,0.16610109,105990.0,105980.0,0.1871913]
[1737745954956,0.16610109,105990.0,105980.0,0.2438053]
[1737745955200,0.020298,105990.0,105980.0,0.5403053]
[1737745955407,0.020298,105990.0,105980.0,0.56911791]
[1737745955615,0.020298,105990.0,105980.0,0.5403053]
[1737745956033,0.020298,105990.0,105980.0,0.56911796]
[1737745957675,0.020298,105990.0,105980.0,0.5789621]
[1737745958617,0.01714325,105990.0,105980.0,0.5789621]
[1737745958867,0.01714325,105990.0,105980.0,0.6789621]
[1737745959069,0.01714325,105990.0,105980.0,0.5789621]
[1737745961145,0.01714325,105990.0,105980.0,0.6789621]
[1737745962071,0.01714325,105990.0,105980.0,0.76333178]
[1737745962719,2.5e-07,105990.0,105980.0,0.76333178]
[1737745965568,2.5e-07,105990.0,105980.0,0.6789621]
[1737745965970,0.00029804,105990.0,105980.0,0.5789621]
[1737745970155,0.00029804,105990.0,105980.0,0.3575621]
[1737745970327,0.00029804,105990.0,105980.0,0.32874944]
[1737745970496,0.00029804,105990.0,105980.0,0.33894944]
[1737745970705,0.00029804,105990.0,105980.0,0.51194944]
[1737745970903,0.00029804,105990.0,105980.0,0.36194944]
[1737745971103,0.00029804,105990.0,105980.0,0.51194944]
[1737745971313,0.00029804,105990.0,105980.0,0.36194944]
[1737745971520,0.54509804,105990.0,105980.0,0.41384944]
[1737745971945,0.54509804,105990.0,105980.0,0.43684944]
[1737745973576,0.54509804,105990.0,105980.0,0.46562905]
[1737745975648,0.54509804,105990.0,105980.0,0.46554905]
[1737745976608,0.00029804,105990.0,105980.0,0.46554905]
[1737745977208,0.00029804,105990.0,105980.0,0.53638905]
[1737745979468,0.00029804,105990.0,105980.0,0.57410805]
[1737745980254,0.00029804,105990.0,105980.0,0.67410805]
[1737745980835,4e-08,105990.0,105980.0,0.67410805]
[1737745981325,4e-08,105990.0,105980.0,0.21585505]
[1737745981526,0.21092204,105990.0,105980.0,0.1772313]
[1737745981747,0.26602204,105990.0,105980.0,0.2338453]
[1737745982194,0.26602204,105990.0,105980.0,0.1772313]
[1737745986632,0.36851277,105990.0,105980.0,0.1772313]
[1737745986842,0.4710035,105990.0,105980.0,0.1772313]
[1737745987022,0.4810035,105990.0,105980.0,0.07988401]
[1737745988266,0.6310035,105990.0,105980.0,0.07988401]
[1737745990211,0.6210035,105990.0,105980.0,0.07988401]
[1737745990426,0.141549,105970.0,105960.0,0.00028923]
[1737745990671,0.51963973,105970.0,105960.0,0.09763652]
[1737745991518,0.267149,105970.0,105960.0,0.09763652]
[1737745992317,0.141549,105970.0,105960.0,0.15426152]
[1737745993276,0.330273,105980.0,105960.0,0.15426152]
[1737745993484,0.02,105970.0,105960.0,0.05691423]
[1737745993688,0.02,105970.0,105960.0,0.15426152]
[1737745993894,0.518997,105980.0,105960.0,0.22975652]
[1737745994078,0.330271,105980.0,105970.0,0.09734729]
[1737745995211,0.141547,105980.0,105970.0,0.15396629]
[1737745995417,0.141547,105980.0,105970.0,0.09734729]
[1737745995735,0.02,105980.0,105970.0,0.22945629]
[1737745995939,0.64405204,105990.0,105970.0,0.30494529]
[1737745996233,0.141536,105980.0,105970.0,0.15396629]
[1737745997727,0.02,105980.0,105970.0,0.15396629]
[1737745997938,0.33023704,105990.0,105980.0,0.056614]
[1737745998169,0.02000004,105990.0,105980.0,0.15396129]
[1737745998375,4e-08,105990.0,105980.0,0.15396129]
[1737745999216,4e-08,105990.0,105980.0,0.17790477]
[1737745999371,4e-08,105990.0,105980.0,0.32790477]
[1737745999589,4e-08,105990.0,105980.0,0.37306129]
[1737746000856,4e-08,105990.0,105980.0,0.38294129]
[1737746001069,4e-08,105990.0,105980.0,0.47406901]
[1737746001281,4e-08,105990.0,105980.0,0.50281118]
[1737746004805,4e-08,105990.0,105980.0,0.58718086]
[1737746005020,0.010298,106010.0,105990.0,0.173]
[1737746005232,0.010298,106010.0,106000.0,0.55339343]
[1737746005440,0.010298,106010.0,106000.0,0.58119246]
[1737746005654,1e-06,106010.0,106000.0,0.58119246]
[1737746006523,0.00049419,106010.0,106000.0,0.41109246]
[1737746006711,0.00049419,106010.0,106000.0,0.38235029]
[1737746006947,0.00049419,106010.0,106000.0,0.40535029]
[1737746008112,0.01049419,106010.0,106000.0,0.39227029]
[1737746008324,0.00049419,106010.0,106000.0,0.39227029]
[1737746008500,0.01049419,106010.0,106000.0,0.39227029]
[1737746008704,0.01049419,106010.0,106000.0,0.47663997]
[1737746009327,0.55529419,106010.0,106000.0,0.49963997]
[1737746010087,0.54529419,106010.0,106000.0,0.49963997]
[1737746010262,0.54529419,106010.0,106000.0,0.49955997]
[1737746011685,0.54529419,106010.0,106000.0,0.50903365]
[1737746011895,0.54529419,106010.0,106000.0,0.42466397]
[1737746012220,0.54529419,106010.0,106000.0,0.42462397]
[1737746012377,0.54529419,106010.0,106000.0,0.41482397]
[1737746012578,0.54529419,106010.0,106000.0,0.42462397]
[1737746013264,0.54559198,106010.0,106000.0,0.42462397]
[1737746013661,0.54559198,106010.0,106000.0,0.42458397]
[1737746013872,0.55559198,106010.0,106000.0,0.42458397]
[1737746014278,0.54559198,106010.0,106000.0,0.42458397]
[1737746014697,0.55559198,106010.0,106000.0,0.42458397]
[1737746014918,0.54559198,106010.0,106000.0,0.34618397]
[1737746015240,0.55559198,106010.0,106000.0,0.34618397]
[1737746015411,0.55559198,106010.0,106000.0,0.33642397]
[1737746015638,0.55559198,106010.0,106000.0,0.34618397]
[1737746016652,0.55559198,106010.0,106000.0,0.33642397]
[1737746016912,0.55559198,106010.0,106000.0,0.34614397]
[1737746017713,0.14228798,106010.0,106000.0,0.10682097]
[1737746017941,0.14228798,106010.0,106000.0,0.15395029]
[1737746018151,0.22418798,106010.0,106000.0,0.09734729]
[1737746018366,0.08269198,106010.0,106000.0,0.15395029]
[1737746018735,0.22418798,106010.0,106000.0,0.15395029]
[1737746019950,0.22418798,106010.0,106000.0,0.09734729]
[1737746020135,0.27068798,106010.0,106000.0,0.09734729]
[1737746022655,0.02,106020.0,106010.0,0.229598]
[1737746022869,0.5548,106020.0,106010.0,0.32694529]
[1737746023325,0.5648,106020.0,106010.0,0.32694529]
[1737746025210,0.56489299,106020.0,106010.0,0.32694529]
[1737746025459,0.55489299,106020.0,106010.0,0.32694529]
[1737746025892,0.56489299,106020.0,106010.0,0.32694529]
[1737746026611,0.55489299,106020.0,106010.0,0.32694529]
[1737746026933,0.55489299,106020.0,106010.0,0.40894529]
[1737746027708,0.01009299,106020.0,106010.0,0.43060557]
[1737746028127,0.01009299,106020.0,106010.0,0.4376969]
[1737746028770,0.01009299,106020.0,106010.0,0.62091253]
[1737746029617,0.01009299,106020.0,106010.0,0.5866969]
[1737746032739,0.01009299,106020.0,106010.0,0.4866969]
[1737746034173,9.9e-07,106020.0,106010.0,0.5866969]
[1737746034381,9.9e-07,106020.0,106010.0,0.6866969]
[1737746035289,0.545098,106050.0,106020.0,0.0754]
[1737746035491,0.54519093,106050.0,106040.0,0.32692929]
[1737746035947,0.00039093,106050.0,106040.0,0.35572986]
[1737746036158,0.00039093,106050.0,106040.0,0.43482986]
[1737746039474,0.00039093,106050.0,106040.0,0.44447856]
[1737746042686,0.00039093,106050.0,106040.0,0.41567799]
[1737746043116,0.00039093,106050.0,106040.0,0.34625799]
[1737746043334,0.01039093,106050.0,106040.0,0.32325799]
[1737746044080,0.01039093,106050.0,106040.0,0.34625799]
[1737746044286,0.00039093,106050.0,106040.0,0.34625799]
[1737746045104,0.00039093,106050.0,106040.0,0.33657799]
[1737746045311,0.01039093,106050.0,106040.0,0.34621799]
[1737746046108,0.01039093,106050.0,106040.0,0.34625799]
[1737746047890,0.55519093,106050.0,106040.0,0.34625799]
[1737746049723,0.55519093,106050.0,106040.0,0.34613799]
[1737746050329,0.55519093,106050.0,106040.0,0.33657799]
[1737746050637,0.00039093,106050.0,106040.0,0.31357799]
[1737746052846,0.02039093,106050.0,106040.0,0.16357799]
[1737746053045,0.22503293,106050.0,106040.0,0.09734729]
[1737746056278,0.02039093,106050.0,106040.0,0.15392929]
[1737746056484,0.00039093,106050.0,106040.0,0.15392929]
[1737746057828,0.01039093,106050.0,106040.0,0.15392929]
[1737746058039,0.02039093,106050.0,106040.0,0.15392929]
[1737746058818,0.01039093,106050.0,106040.0,0.17692929]
[1737746059022,0.01039093,106050.0,106040.0,0.33731227]
[1737746059204,0.01039093,106050.0,106040.0,0.36519426]
[1737746062441,0.54519093,106050.0,106040.0,0.36515426]
[1737746063054,0.54519093,106050.0,106040.0,0.37480908]
[1737746064931,9.3e-07,106050.0,106040.0,0.47407072]
[1737746067295,0.545098,106070.0,106040.0,0.60545921]
[1737746067525,0.545098,106070.0,106060.0,0.25311829]
[1737746067865,0.000298,106070.0,106060.0,0.4959049]
[1737746070106,0.000298,106070.0,106060.0,0.5052249]
[1737746071588,0.000298,106070.0,106060.0,0.51471711]
[1737746073104,0.000298,106080.0,106070.0,0.079566]
[1737746073308,1e-06,106080.0,106070.0,0.37263952]
[1737746073540,1e-06,106080.0,106070.0,0.371697]
[1737746078136,1e-06,106080.0,106070.0,0.923257]
[1737746079020,0.54505879,106090.0,106080.0,0.312261]
[1737746079231,0.54520653,106090.0,106080.0,0.90977326]
[1737746081301,0.54520653,106090.0,106080.0,0.88094829]
[1737746081515,0.54520653,106090.0,106080.0,0.80772829]
[1737746082944,0.55520653,106090.0,106080.0,0.86891886]
[1737746083327,0.55520653,106090.0,106080.0,0.70943886]
[1737746083536,0.01040653,106090.0,106080.0,0.85943886]
[1737746083715,0.07680653,106090.0,106080.0,0.85943886]
[1737746083940,0.07680653,106090.0,106080.0,0.86877335]
[1737746086634,0.08659853,106090.0,106080.0,0.86877335]
[1737746086849,0.08659853,106090.0,106080.0,0.78458278]
[1737746087003,0.10659853,106090.0,106080.0,0.78458278]
[1737746087426,0.24798753,106090.0,106080.0,0.57802178]
[1737746087614,0.27468753,106090.0,106080.0,0.56868729]
[1737746088786,0.38717826,106090.0,106080.0,0.47134]
[1737746089267,0.28468753,106090.0,106080.0,0.47134]
[1737746090449,0.38717826,106090.0,106080.0,0.47134]
[1737746090681,0.53717826,106090.0,106080.0,0.47134]
[1737746090887,0.55717826,106090.0,106080.0,0.47134]
[1737746092297,0.54717826,106090.0,106080.0,0.47134]
[1737746092867,0.54717826,106090.0,106080.0,0.46234549]
[1737746093066,0.5565379,106090.0,106080.0,0.46234549]
[1737746093254,0.141429,106060.0,106050.0,0.0001417]
[1737746093405,0.268929,106060.0,106050.0,0.15406599]
[1737746093616,0.268929,106060.0,106050.0,0.09748899]
[1737746098853,0.1275,106060.0,106050.0,0.15406599]
[1737746099255,0.268929,106060.0,106050.0,0.15406599]
[1737746099454,0.1275,106060.0,106050.0,0.15406599]
[1737746099682,0.408181,106070.0,106060.0,0.056571]
[1737746099905,0.408181,106070.0,106060.0,0.09734729]
[1737746100517,0.408181,106070.0,106060.0,0.15391829]
[1737746100719,0.0782,106070.0,106060.0,0.15391829]
[1737746100893,0.219616,106070.0,106060.0,0.15391829]
[1737746101100,0.0782,106070.0,106060.0,0.15391829]
[1737746101276,0.219616,106070.0,106060.0,0.15391829]
[1737746101484,0.0782,106070.0,106060.0,0.15391829]
[1737746101919,0.219616,106070.0,106060.0,0.15391829]
[1737746103631,0.38468818,106080.0,106060.0,0.14355129]
[1737746103809,0.265413,106080.0,106070.0,0.056566]
[1737746104022,0.265413,106080.0,106070.0,0.15391329]
[1737746105337,0.265402,106080.0,106070.0,0.15391329]
[1737746105716,0.34011853,106090.0,106080.0,0.056561]
[1737746105918,0.34011853,106090.0,106080.0,0.15390829]
[1737746106547,0.01019853,106090.0,106080.0,0.15390829]
[1737746107817,0.02019853,106090.0,106080.0,0.15390829]
[1737746107823,0.03019853,106090.0,106080.0,0.15390829]
[1737746108921,0.01019853,106090.0,106080.0,0.15390829]
[1737746109133,0.03019853,106090.0,106080.0,0.15390829]
[1737746109743,0.02019853,106090.0,106080.0,0.15390829]
[1737746110560,0.01019853,106090.0,106080.0,0.15390829]
[1737746110972,0.01019853,106090.0,106080.0,0.16336552]
[1737746111601,0.03019853,106090.0,106080.0,0.16336552]
[1737746112680,0.01019853,106090.0,106080.0,0.16336552]
[1737746112856,0.03019853,106090.0,106080.0,0.16336552]
[1737746113482,0.17158753,106090.0,106080.0,0.16336552]
[1737746113675,0.03019853,106090.0,106080.0,0.16336552]
[1737746114267,0.17158753,106090.0,106080.0,0.16336552]
[1737746114450,0.03019853,106090.0,106080.0,0.16336552]
[1737746115193,0.15158753,106090.0,106080.0,0.16336552]
[1737746115371,0.01019853,106090.0,106080.0,0.16336552]
[1737746116007,0.01019853,106090.0,106080.0,0.15390829]
[1737746116211,0.15158753,106090.0,106080.0,0.09734729]
[1737746116339,0.15158753,106090.0,106080.0,0.15390829]
[1737746117199,0.01019853,106090.0,106080.0,0.15390829]
[1737746117619,0.00040653,106090.0,106080.0,0.15390829]
[1737746118747,0.14179553,106090.0,106080.0,0.09734729]
[1737746119097,0.00040653,106090.0,106080.0,0.15390829]
[1737746119498,0.14179553,106090.0,106080.0,0.15390829]
[1737746120317,0.00040653,106090.0,106080.0,0.15390829]
[1737746123694,0.00040653,106090.0,106080.0,0.23390829]
[1737746124034,0.00040653,106090.0,106080.0,0.15390829]
[1737746125119,0.00040653,106090.0,106080.0,0.23390829]
[1737746126692,0.00040653,106090.0,106080.0,0.45470829]
[1737746127099,0.00040653,106090.0,106080.0,0.48348533]
[1737746127292,0.00040653,106090.0,106080.0,0.45470829]
[1737746127499,0.00040653,106090.0,106080.0,0.48347927]
[1737746128845,0.18875421,106130.0,106120.0,0.287139]
[1737746128846,0.00029821,106130.0,106120.0,0.287139]
[1737746129053,0.02079058,106130.0,106120.0,0.41648629]
[1737746129488,0.02079058,106130.0,106120.0,0.39348629]
[1737746129715,0.00079058,106130.0,106120.0,0.15388629]
[1737746133659,0.14212658,106130.0,106120.0,0.09734729]
[1737746136151,0.19072658,106130.0,106120.0,0.09734729]
[1737746136457,0.2004084,106130.0,106120.0,0.09734729]
[1737746136661,0.538345,106110.0,106090.0,0.30102412]
[1737746136868,0.461776,106100.0,106090.0,0.16906912]
[1737746137080,0.461776,106100.0,106090.0,0.18153786]
[1737746137497,0.461776,106100.0,106090.0,0.23809286]
[1737746137696,1.006576,106100.0,106090.0,0.23809286]
[1737746137899,0.8652,106100.0,106090.0,0.15390229]
[1737746138318,1.006576,106100.0,106090.0,0.15390229]
[1737746138524,0.8652,106100.0,106090.0,0.15390229]
[1737746139610,1.006576,106100.0,106090.0,0.15390229]
[1737746140037,0.141376,106100.0,106090.0,0.15390229]
[1737746140723,0.518344,106110.0,106090.0,0.22930429]
[1737746140949,0.518344,106110.0,106100.0,0.09734729]
[1737746140950,0.329852,106110.0,106100.0,0.09734729]
[1737746141508,0.329852,106110.0,106100.0,0.15389729]
[1737746141717,0.141369,106110.0,106100.0,0.15389729]
[1737746142689,0.14550339,106110.0,106100.0,0.15389729]
[1737746143316,0.00404727,106110.0,106100.0,0.15389729]
[1737746144044,0.14540927,106110.0,106100.0,0.15389729]
[1737746144632,0.14540927,106110.0,106100.0,0.09734729]
[1737746144883,0.14540927,106110.0,106100.0,0.15389729]
[1737746145601,0.14540927,106110.0,106100.0,0.09734729]
[1737746145943,0.14540927,106110.0,106100.0,0.15389729]
[1737746147234,0.00404727,106110.0,106100.0,0.15389729]
[1737746147428,0.14540927,106110.0,106100.0,0.15389729]
[1737746147634,0.00404727,106110.0,106100.0,0.15389729]
[1737746149120,0.14540927,106110.0,106100.0,0.15389729]
[1737746150708,0.14540927,106110.0,106100.0,0.09734729]